[Event "Titled Tuesday Blitz August 09 Late 2022"]
[White "Ibarra Jerez, Jose Carlos"]
[Black "Sorkin, Igor"]
[WhiteFideId "2226332"]
[BlackFideId "2803283"]
[WhiteElo "2628"]
[BlackElo "2401"]
[Result "1-0"]
[Round "07"]
[TimeControl "180+1"]
[Date "2022.08.09"]
[WhiteClock "0:00:05"]
[BlackClock "0:00:08"]

1. e4 {[%clk 0:02:54]}  c5 {[%clk 0:02:59]} 2. Nc3 {[%clk 0:02:53]}  e6 {[%clk 0:03:00]} 3. Nf3 {[%clk 0:02:53]}  a6 {[%clk 0:03:00]} 4. d4 {[%clk 0:02:53]}  cxd4 {[%clk 0:03:01]} 5. Nxd4 {[%clk 0:02:54]}  d6 {[%clk 0:03:02]} 6. g3 {[%clk 0:02:54]}  Nf6 {[%clk 0:03:02]} 7. Bg2 {[%clk 0:02:55]}  Be7 {[%clk 0:03:02]} 8. O-O {[%clk 0:02:55]}  O-O {[%clk 0:03:03]} 9. g4 {[%clk 0:02:48]}  Nc6 {[%clk 0:02:59]} 10. g5 {[%clk 0:02:48]}  Nd7 {[%clk 0:03:00]} 11. f4 {[%clk 0:02:44]}  Re8 {[%clk 0:02:27]} 12. Nb3 {[%clk 0:02:16]}  Qc7 {[%clk 0:02:24]} 13. a4 {[%clk 0:02:13]}  Rb8 {[%clk 0:02:21]} 14. a5 {[%clk 0:02:06]}  Nc5 {[%clk 0:02:15]} 15. Nxc5 {[%clk 0:02:02]}  dxc5 {[%clk 0:02:15]} 16. e5 {[%clk 0:02:01]}  Nxa5 {[%clk 0:02:11]} 17. Rf3 {[%clk 0:01:51]}  Nc6 {[%clk 0:01:38]} 18. Rh3 {[%clk 0:01:50]}  Bf8 {[%clk 0:01:29]} 19. Ne4 {[%clk 0:01:36]}  Nd4 {[%clk 0:01:20]} 20. Qh5 {[%clk 0:01:32]}  h6 {[%clk 0:01:19]} 21. gxh6 {[%clk 0:01:25]}  g6 {[%clk 0:01:20]} 22. Nf6+ {[%clk 0:01:22]}  Kh8 {[%clk 0:01:20]} 23. Nxe8 {[%clk 0:01:17]}  Qd8 {[%clk 0:01:20]} 24. Qd1 {[%clk 0:00:43]}  Qxe8 {[%clk 0:01:19]} 25. h7 {[%clk 0:00:41]}  Bd7 {[%clk 0:01:14]} 26. Be3 {[%clk 0:00:41]}  Nf5 {[%clk 0:01:14]} 27. Bf2 {[%clk 0:00:40]}  Be7 {[%clk 0:00:53]} 28. Raa3 {[%clk 0:00:38]}  c4 {[%clk 0:00:49]} 29. Ra1 {[%clk 0:00:31]}  Bc6 {[%clk 0:00:47]} 30. Qf1 {[%clk 0:00:26]}  b5 {[%clk 0:00:43]} 31. Rxa6 {[%clk 0:00:24]}  Bxg2 {[%clk 0:00:39]} 32. Qxg2 {[%clk 0:00:25]}  Rd8 {[%clk 0:00:40]} 33. Ra1 {[%clk 0:00:20]}  Qd7 {[%clk 0:00:37]} 34. Rf3 {[%clk 0:00:16]}  Kxh7 {[%clk 0:00:33]} 35. Bb6 {[%clk 0:00:15]}  Rb8 {[%clk 0:00:30]} 36. Bf2 {[%clk 0:00:14]}  Rd8 {[%clk 0:00:30]} 37. Re1 {[%clk 0:00:12]}  Qd2 {[%clk 0:00:28]} 38. c3 {[%clk 0:00:05]}  Qxb2 {[%clk 0:00:23]} 39. Rh3+ {[%clk 0:00:04]}  Kg7 {[%clk 0:00:18]} 40. Qf3 {[%clk 0:00:04]}  Rd3 {[%clk 0:00:17]} 41. Qg4 {[%clk 0:00:05]}  Rd2 {[%clk 0:00:17]} 42. Rf1 {[%clk 0:00:04]}  b4 {[%clk 0:00:15]} 43. cxb4 {[%clk 0:00:04]}  c3 {[%clk 0:00:15]} 44. Be1 {[%clk 0:00:04]}  Rc2 {[%clk 0:00:09]} 45. Qf3 {[%clk 0:00:05]}  Bxb4 {[%clk 0:00:09]} 46. Qd3 {[%clk 0:00:05]}  Bc5+ {[%clk 0:00:08]} 47. Kh1 {[%clk 0:00:05]}  Rc1 {[%clk 0:00:09]} 48. Qd8 {[%clk 0:00:05]}  Be7 {[%clk 0:00:08]} 49. Qh8# {[%clk 0:00:05]} 1-0


[Site "https://www.chess.com"]

[Event "Titled Tuesday Blitz August 09 Late 2022"]
[White "Kosteniuk, Alexandra"]
[Black "Premnath, R."]
[WhiteFideId "4128125"]
[BlackFideId "5021928"]
[WhiteElo "2469"]
[BlackElo "2513"]
[Result "1-0"]
[Round "07"]
[TimeControl "180+1"]
[Date "2022.08.09"]
[WhiteClock "0:00:19"]
[BlackClock "0:00:01"]

1. e4 {[%clk 0:03:00]}  c5 {[%clk 0:02:59]} 2. Nf3 {[%clk 0:03:00]}  d6 {[%clk 0:02:59]} 3. d4 {[%clk 0:02:59]}  cxd4 {[%clk 0:02:59]} 4. Qxd4 {[%clk 0:03:00]}  a6 {[%clk 0:02:59]} 5. c4 {[%clk 0:02:58]}  e5 {[%clk 0:02:54]} 6. Qd1 {[%clk 0:02:56]}  Be7 {[%clk 0:02:48]} 7. Nc3 {[%clk 0:02:56]}  Nf6 {[%clk 0:02:46]} 8. Be2 {[%clk 0:02:54]}  h6 {[%clk 0:02:45]} 9. O-O {[%clk 0:02:49]}  Be6 {[%clk 0:02:45]} 10. Be3 {[%clk 0:02:40]}  Nbd7 {[%clk 0:02:45]} 11. Rc1 {[%clk 0:02:34]}  O-O {[%clk 0:02:44]} 12. b4 {[%clk 0:02:31]}  Rc8 {[%clk 0:02:42]} 13. Nd2 {[%clk 0:02:31]}  Re8 {[%clk 0:01:59]} 14. h3 {[%clk 0:02:30]}  Bf8 {[%clk 0:01:58]} 15. a4 {[%clk 0:02:28]}  a5 {[%clk 0:01:54]} 16. bxa5 {[%clk 0:02:21]}  Nc5 {[%clk 0:01:44]} 17. f4 {[%clk 0:02:10]}  exf4 {[%clk 0:01:39]} 18. Bd4 {[%clk 0:02:09]}  Nfd7 {[%clk 0:01:33]} 19. Rxf4 {[%clk 0:02:07]}  Ne5 {[%clk 0:01:30]} 20. Nf1 {[%clk 0:01:32]}  Qxa5 {[%clk 0:01:03]} 21. Ne3 {[%clk 0:01:31]}  Ng6 {[%clk 0:00:45]} 22. Rf1 {[%clk 0:01:29]}  Bd7 {[%clk 0:00:44]} 23. Bf3 {[%clk 0:01:15]}  Nxa4 {[%clk 0:00:15]} 24. Ncd5 {[%clk 0:01:15]}  Nc5 {[%clk 0:00:12]} 25. Nf5 {[%clk 0:01:14]}  Ne5 {[%clk 0:00:10]} 26. Ra1 {[%clk 0:00:55]}  Qd8 {[%clk 0:00:10]} 27. Qc2 {[%clk 0:00:35]}  Bxf5 {[%clk 0:00:10]} 28. exf5 {[%clk 0:00:35]}  Nxf3+ {[%clk 0:00:10]} 29. Rxf3 {[%clk 0:00:35]}  Qg5 {[%clk 0:00:10]} 30. f6 {[%clk 0:00:30]}  g6 {[%clk 0:00:08]} 31. Kh2 {[%clk 0:00:30]}  Ne6 {[%clk 0:00:06]} 32. Rg3 {[%clk 0:00:24]}  Qxd5 {[%clk 0:00:02]} 33. Rxg6+ {[%clk 0:00:24]}  Kh8 {[%clk 0:00:03]} 34. Qd2 {[%clk 0:00:21]}  Qh5 {[%clk 0:00:01]} 35. Rg4 {[%clk 0:00:19]} 1-0


[Site "https://www.chess.com"]

[Event "Titled Tuesday Blitz August 09 Late 2022"]
[White "Kravtsiv, Martyn"]
[Black "Kamsky, Gata"]
[WhiteFideId "14113147"]
[BlackFideId "2000024"]
[WhiteElo "2694"]
[BlackElo "2666"]
[Result "1-0"]
[Round "07"]
[TimeControl "180+1"]
[Date "2022.08.09"]
[WhiteClock "0:00:10"]
[BlackClock "0:00:04"]

1. e4 {[%clk 0:03:00]}  c5 {[%clk 0:02:53]} 2. Nf3 {[%clk 0:03:01]}  e6 {[%clk 0:02:43]} 3. d4 {[%clk 0:03:00]}  cxd4 {[%clk 0:02:42]} 4. Nxd4 {[%clk 0:03:01]}  a6 {[%clk 0:02:40]} 5. Be2 {[%clk 0:03:00]}  Nf6 {[%clk 0:02:31]} 6. Nc3 {[%clk 0:02:59]}  d6 {[%clk 0:02:29]} 7. O-O {[%clk 0:02:56]}  b5 {[%clk 0:02:29]} 8. Bf3 {[%clk 0:02:54]}  Ra7 {[%clk 0:02:22]} 9. Be3 {[%clk 0:02:47]}  Rc7 {[%clk 0:02:14]} 10. a4 {[%clk 0:02:40]}  b4 {[%clk 0:02:05]} 11. Nce2 {[%clk 0:02:40]}  Bb7 {[%clk 0:02:03]} 12. Ng3 {[%clk 0:02:35]}  Nbd7 {[%clk 0:02:02]} 13. Bd2 {[%clk 0:02:26]}  d5 {[%clk 0:01:47]} 14. exd5 {[%clk 0:02:11]}  Bxd5 {[%clk 0:01:47]} 15. Re1 {[%clk 0:02:10]}  Nb6 {[%clk 0:01:18]} 16. Bf4 {[%clk 0:02:03]}  Rc8 {[%clk 0:01:01]} 17. Ndf5 {[%clk 0:01:38]}  g6 {[%clk 0:00:52]} 18. Ne3 {[%clk 0:01:24]}  Bg7 {[%clk 0:00:45]} 19. a5 {[%clk 0:01:09]}  Bxf3 {[%clk 0:00:42]} 20. Qxd8+ {[%clk 0:01:09]}  Kxd8 {[%clk 0:00:42]} 21. axb6 {[%clk 0:01:07]}  Bb7 {[%clk 0:00:42]} 22. Bc7+ {[%clk 0:01:05]}  Rxc7 {[%clk 0:00:39]} 23. bxc7+ {[%clk 0:01:05]}  Kxc7 {[%clk 0:00:40]} 24. Nc4 {[%clk 0:01:04]}  Nd5 {[%clk 0:00:37]} 25. Ne4 {[%clk 0:01:03]}  Nb6 {[%clk 0:00:28]} 26. Nxb6 {[%clk 0:00:49]}  Kxb6 {[%clk 0:00:28]} 27. Nd6 {[%clk 0:00:49]}  Bd5 {[%clk 0:00:25]} 28. Nxf7 {[%clk 0:00:36]}  Rc8 {[%clk 0:00:24]} 29. c3 {[%clk 0:00:36]}  bxc3 {[%clk 0:00:23]} 30. bxc3 {[%clk 0:00:37]}  Bxc3 {[%clk 0:00:22]} 31. Rab1+ {[%clk 0:00:36]}  Ka7 {[%clk 0:00:22]} 32. Rec1 {[%clk 0:00:37]}  Rc7 {[%clk 0:00:18]} 33. Nd6 {[%clk 0:00:35]}  Ba5 {[%clk 0:00:16]} 34. Nc8+ {[%clk 0:00:34]}  Ka8 {[%clk 0:00:16]} 35. Rxc7 {[%clk 0:00:29]}  Bxc7 {[%clk 0:00:16]} 36. Nb6+ {[%clk 0:00:29]}  Bxb6 {[%clk 0:00:16]} 37. Rxb6 {[%clk 0:00:29]}  Ka7 {[%clk 0:00:16]} 38. Rb1 {[%clk 0:00:21]}  a5 {[%clk 0:00:17]} 39. f3 {[%clk 0:00:17]}  a4 {[%clk 0:00:17]} 40. Rb4 {[%clk 0:00:17]}  Bb3 {[%clk 0:00:16]} 41. Kf2 {[%clk 0:00:17]}  Ka6 {[%clk 0:00:16]} 42. Ke3 {[%clk 0:00:16]}  Ka5 {[%clk 0:00:17]} 43. Rb7 {[%clk 0:00:11]}  Bd5 {[%clk 0:00:16]} 44. Rxh7 {[%clk 0:00:11]}  a3 {[%clk 0:00:16]} 45. Ra7+ {[%clk 0:00:11]}  Kb4 {[%clk 0:00:16]} 46. Kd4 {[%clk 0:00:11]}  Kb3 {[%clk 0:00:16]} 47. h4 {[%clk 0:00:11]}  a2 {[%clk 0:00:15]} 48. Ke5 {[%clk 0:00:11]}  Kb2 {[%clk 0:00:10]} 49. Kf6 {[%clk 0:00:11]}  a1=Q {[%clk 0:00:09]} 50. Rxa1 {[%clk 0:00:11]}  Kxa1 {[%clk 0:00:10]} 51. Kxg6 {[%clk 0:00:12]}  Bc4 {[%clk 0:00:06]} 52. h5 {[%clk 0:00:11]}  Bf1 {[%clk 0:00:04]} 53. h6 {[%clk 0:00:10]} 1-0


[Site "https://www.chess.com"]

[Event "Titled Tuesday Blitz August 09 Late 2022"]
[White "Leiva, Gianmarco"]
[Black "Zhang, Eric"]
[WhiteFideId "3804399"]
[BlackFideId "30907667"]
[WhiteElo "2323"]
[BlackElo "2484"]
[Result "0-1"]
[Round "07"]
[TimeControl "180+1"]
[Date "2022.08.09"]
[WhiteClock "0:00:11"]
[BlackClock "0:00:20"]

1. e4 {[%clk 0:02:58]}  c5 {[%clk 0:03:00]} 2. Nf3 {[%clk 0:02:58]}  d6 {[%clk 0:03:00]} 3. Bb5+ {[%clk 0:02:57]}  Nd7 {[%clk 0:02:59]} 4. a4 {[%clk 0:02:57]}  a6 {[%clk 0:02:59]} 5. Be2 {[%clk 0:02:54]}  g6 {[%clk 0:02:58]} 6. O-O {[%clk 0:02:43]}  Bg7 {[%clk 0:02:57]} 7. Nc3 {[%clk 0:02:42]}  Ngf6 {[%clk 0:02:57]} 8. d4 {[%clk 0:02:32]}  cxd4 {[%clk 0:02:53]} 9. Qxd4 {[%clk 0:02:33]}  O-O {[%clk 0:02:53]} 10. Rd1 {[%clk 0:02:22]}  Qb6 {[%clk 0:02:44]} 11. Qxb6 {[%clk 0:02:14]}  Nxb6 {[%clk 0:02:45]} 12. a5 {[%clk 0:02:07]}  Nbd7 {[%clk 0:02:42]} 13. Nd5 {[%clk 0:02:06]}  Nxd5 {[%clk 0:02:38]} 14. exd5 {[%clk 0:02:06]}  Nc5 {[%clk 0:02:30]} 15. Nd4 {[%clk 0:02:01]}  Bd7 {[%clk 0:02:21]} 16. Be3 {[%clk 0:01:39]}  Rac8 {[%clk 0:02:16]} 17. Rab1 {[%clk 0:00:58]}  Na4 {[%clk 0:01:45]} 18. c3 {[%clk 0:00:47]}  Nc5 {[%clk 0:01:30]} 19. f3 {[%clk 0:00:47]}  Bxd4 {[%clk 0:01:22]} 20. Bxd4 {[%clk 0:00:46]}  Bf5 {[%clk 0:01:22]} 21. Bxc5 {[%clk 0:00:21]}  Bxb1 {[%clk 0:01:16]} 22. Bxd6 {[%clk 0:00:21]}  exd6 {[%clk 0:01:12]} 23. Rxb1 {[%clk 0:00:21]}  Rc5 {[%clk 0:01:12]} 24. c4 {[%clk 0:00:20]}  Rxa5 {[%clk 0:01:11]} 25. b4 {[%clk 0:00:15]}  Ra2 {[%clk 0:01:10]} 26. Bf1 {[%clk 0:00:15]}  Rd2 {[%clk 0:01:01]} 27. Re1 {[%clk 0:00:15]}  Rb2 {[%clk 0:00:57]} 28. b5 {[%clk 0:00:09]}  a5 {[%clk 0:00:52]} 29. Re7 {[%clk 0:00:08]}  b6 {[%clk 0:00:38]} 30. Bd3 {[%clk 0:00:04]}  a4 {[%clk 0:00:36]} 31. Ra7 {[%clk 0:00:04]}  Re8 {[%clk 0:00:32]} 32. h4 {[%clk 0:00:02]}  Ra2 {[%clk 0:00:24]} 33. h5 {[%clk 0:00:01]}  Kg7 {[%clk 0:00:23]} 34. h6+ {[%clk 0:00:01]}  Kxh6 {[%clk 0:00:22]} 35. Rxf7 {[%clk 0:00:01]}  a3 {[%clk 0:00:21]} 36. Ra7 {[%clk 0:00:02]}  Rd2 {[%clk 0:00:20]} 37. Rxa3 {[%clk 0:00:02]}  Re3 {[%clk 0:00:19]} 38. Ra6 {[%clk 0:00:02]}  Rdxd3 {[%clk 0:00:18]} 39. Rxb6 {[%clk 0:00:03]}  Rc3 {[%clk 0:00:18]} 40. Rc6 {[%clk 0:00:02]}  Red3 {[%clk 0:00:18]} 41. b6 {[%clk 0:00:01]}  Rd4 {[%clk 0:00:16]} 42. b7 {[%clk 0:00:01]}  Rb3 {[%clk 0:00:17]} 43. Rxd6 {[%clk 0:00:01]}  Rxc4 {[%clk 0:00:16]} 44. Rc6 {[%clk 0:00:02]}  Rd4 {[%clk 0:00:14]} 45. Rc7 {[%clk 0:00:02]}  Rxd5 {[%clk 0:00:14]} 46. Kh2 {[%clk 0:00:03]}  Rdb5 {[%clk 0:00:14]} 47. Rd7 {[%clk 0:00:03]}  Rxb7 {[%clk 0:00:15]} 48. Rd4 {[%clk 0:00:03]}  R7b4 {[%clk 0:00:15]} 49. Rg4 {[%clk 0:00:04]}  Rxg4 {[%clk 0:00:15]} 50. fxg4 {[%clk 0:00:05]}  Kg5 {[%clk 0:00:15]} 51. g3 {[%clk 0:00:06]}  h5 {[%clk 0:00:16]} 52. Kg2 {[%clk 0:00:07]}  Kxg4 {[%clk 0:00:15]} 53. Kh2 {[%clk 0:00:08]}  Rxg3 {[%clk 0:00:16]} 54. Kh1 {[%clk 0:00:09]}  h4 {[%clk 0:00:16]} 55. Kh2 {[%clk 0:00:09]}  Kf3 {[%clk 0:00:17]} 56. Kh1 {[%clk 0:00:10]}  Kf2 {[%clk 0:00:18]} 57. Kh2 {[%clk 0:00:11]}  Rf3 {[%clk 0:00:19]} 58. Kh1 {[%clk 0:00:11]}  Rh3# {[%clk 0:00:20]} 0-1


[Site "https://www.chess.com"]

[Event "Titled Tuesday Blitz August 09 Late 2022"]
[White "Lobanov, Sergei"]
[Black "Chigaev, Maksim"]
[WhiteFideId "24183750"]
[BlackFideId "4108116"]
[WhiteElo "2524"]
[BlackElo "2487"]
[Result "1-0"]
[Round "07"]
[TimeControl "180+1"]
[Date "2022.08.09"]
[WhiteClock "0:00:20"]
[BlackClock "0:00:02"]

1. Nf3 {[%clk 0:02:58]}  Nf6 {[%clk 0:02:59]} 2. b3 {[%clk 0:02:58]}  g6 {[%clk 0:03:00]} 3. Bb2 {[%clk 0:02:58]}  Bg7 {[%clk 0:03:00]} 4. c4 {[%clk 0:02:59]}  O-O {[%clk 0:02:50]} 5. g3 {[%clk 0:02:59]}  d6 {[%clk 0:02:50]} 6. Bg2 {[%clk 0:02:59]}  e5 {[%clk 0:02:51]} 7. d3 {[%clk 0:02:58]}  c5 {[%clk 0:02:51]} 8. O-O {[%clk 0:02:58]}  Nc6 {[%clk 0:02:51]} 9. Nc3 {[%clk 0:02:58]}  h6 {[%clk 0:02:52]} 10. Nd2 {[%clk 0:02:58]}  Be6 {[%clk 0:02:52]} 11. Nd5 {[%clk 0:02:54]}  Ne8 {[%clk 0:02:52]} 12. f4 {[%clk 0:02:52]}  f5 {[%clk 0:02:48]} 13. e3 {[%clk 0:02:49]}  Rb8 {[%clk 0:02:44]} 14. a3 {[%clk 0:02:45]}  Kh7 {[%clk 0:02:34]} 15. Qe2 {[%clk 0:02:37]}  Qd7 {[%clk 0:02:25]} 16. Bc3 {[%clk 0:02:18]}  Nf6 {[%clk 0:02:08]} 17. b4 {[%clk 0:02:15]}  exf4 {[%clk 0:00:55]} 18. Bxf6 {[%clk 0:02:00]}  Bxf6 {[%clk 0:00:48]} 19. Nxf6+ {[%clk 0:01:59]}  Rxf6 {[%clk 0:00:48]} 20. gxf4 {[%clk 0:01:59]}  Re8 {[%clk 0:00:47]} 21. Qf2 {[%clk 0:01:52]}  b6 {[%clk 0:00:44]} 22. b5 {[%clk 0:01:42]}  Nd8 {[%clk 0:00:43]} 23. a4 {[%clk 0:01:40]}  Nb7 {[%clk 0:00:37]} 24. Bc6 {[%clk 0:01:33]}  Qf7 {[%clk 0:00:35]} 25. Bxe8 {[%clk 0:01:30]}  Qxe8 {[%clk 0:00:36]} 26. e4 {[%clk 0:01:30]}  Rf8 {[%clk 0:00:32]} 27. Rae1 {[%clk 0:01:30]}  Qf7 {[%clk 0:00:32]} 28. Qh4 {[%clk 0:01:25]}  Nd8 {[%clk 0:00:22]} 29. Nf3 {[%clk 0:01:16]}  Kg7 {[%clk 0:00:19]} 30. exf5 {[%clk 0:01:12]}  Qxf5 {[%clk 0:00:19]} 31. Qe7+ {[%clk 0:01:12]}  Kg8 {[%clk 0:00:10]} 32. Qxd6 {[%clk 0:01:12]}  Qg4+ {[%clk 0:00:04]} 33. Kh1 {[%clk 0:01:11]}  Bf5 {[%clk 0:00:04]} 34. Ne5 {[%clk 0:01:02]}  Qh5 {[%clk 0:00:04]} 35. Rg1 {[%clk 0:00:55]}  Ne6 {[%clk 0:00:03]} 36. Re3 {[%clk 0:00:40]}  Rf6 {[%clk 0:00:02]} 37. Nd7 {[%clk 0:00:36]}  Rf7 {[%clk 0:00:02]} 38. Qd5 {[%clk 0:00:27]}  Kh7 {[%clk 0:00:01]} 39. Ne5 {[%clk 0:00:24]}  Rg7 {[%clk 0:00:02]} 40. Nd7 {[%clk 0:00:21]}  Nxf4 {[%clk 0:00:02]} 41. Nf6+ {[%clk 0:00:20]} 1-0


[Site "https://www.chess.com"]

[Event "Titled Tuesday Blitz August 09 Late 2022"]
[White "Mcconnell, Sullivan"]
[Black "Bartholomew, John"]
[WhiteFideId "30934885"]
[BlackFideId "2019353"]
[WhiteElo "2617"]
[BlackElo "2754"]
[Result "1-0"]
[Round "07"]
[TimeControl "180+1"]
[Date "2022.08.09"]
[WhiteClock "0:00:24"]
[BlackClock "0:00:03"]

1. e4 {[%clk 0:03:00]}  c5 {[%clk 0:02:58]} 2. Nc3 {[%clk 0:03:01]}  a6 {[%clk 0:02:58]} 3. f4 {[%clk 0:02:59]}  b5 {[%clk 0:02:58]} 4. Nf3 {[%clk 0:02:59]}  Bb7 {[%clk 0:02:58]} 5. d3 {[%clk 0:03:00]}  e6 {[%clk 0:02:58]} 6. g3 {[%clk 0:03:00]}  d5 {[%clk 0:02:57]} 7. Bg2 {[%clk 0:02:59]}  b4 {[%clk 0:02:53]} 8. exd5 {[%clk 0:02:59]}  bxc3 {[%clk 0:02:36]} 9. dxe6 {[%clk 0:02:59]}  fxe6 {[%clk 0:02:35]} 10. bxc3 {[%clk 0:03:00]}  Nf6 {[%clk 0:02:29]} 11. O-O {[%clk 0:02:58]}  Be7 {[%clk 0:02:23]} 12. Ng5 {[%clk 0:02:58]}  Bxg2 {[%clk 0:02:21]} 13. Kxg2 {[%clk 0:02:54]}  Qd5+ {[%clk 0:02:13]} 14. Qf3 {[%clk 0:02:54]}  Qxf3+ {[%clk 0:02:07]} 15. Kxf3 {[%clk 0:02:55]}  Kd7 {[%clk 0:02:06]} 16. Re1 {[%clk 0:02:55]}  Nc6 {[%clk 0:01:53]} 17. Nxe6 {[%clk 0:02:55]}  g6 {[%clk 0:01:52]} 18. Ba3 {[%clk 0:02:55]}  Nd5 {[%clk 0:01:44]} 19. Bxc5 {[%clk 0:02:30]}  Nxc3 {[%clk 0:01:34]} 20. Bxe7 {[%clk 0:02:23]}  Nxe7 {[%clk 0:01:28]} 21. Nc5+ {[%clk 0:02:21]}  Kd6 {[%clk 0:01:28]} 22. Re6+ {[%clk 0:02:20]}  Kxc5 {[%clk 0:01:27]} 23. Rxe7 {[%clk 0:02:20]}  Nd5 {[%clk 0:01:08]} 24. Re5 {[%clk 0:01:37]}  Rhe8 {[%clk 0:01:05]} 25. c4 {[%clk 0:01:27]}  Rxe5 {[%clk 0:01:04]} 26. fxe5 {[%clk 0:01:28]}  Rf8+ {[%clk 0:00:45]} 27. Ke4 {[%clk 0:01:09]}  Nc3+ {[%clk 0:00:45]} 28. Ke3 {[%clk 0:01:09]}  Rf5 {[%clk 0:00:45]} 29. e6 {[%clk 0:00:37]}  Na4 {[%clk 0:00:15]} 30. d4+ {[%clk 0:00:34]}  Kxc4 {[%clk 0:00:14]} 31. e7 {[%clk 0:00:33]}  Nc3 {[%clk 0:00:03]} 32. Rc1 {[%clk 0:00:24]} 1-0


[Site "https://www.chess.com"]

[Event "Titled Tuesday Blitz August 09 Late 2022"]
[White "Oparin, Grigoriy"]
[Black "Mardov, Dimitar"]
[WhiteFideId "24125890"]
[BlackFideId "30919495"]
[WhiteElo "2639"]
[BlackElo "2185"]
[Result "0-1"]
[Round "07"]
[TimeControl "180+1"]
[Date "2022.08.09"]
[WhiteClock "0:01:08"]
[BlackClock "0:01:17"]

1. c4 {[%clk 0:03:00]}  e5 {[%clk 0:03:00]} 2. Nc3 {[%clk 0:03:00]}  Nc6 {[%clk 0:03:00]} 3. Nf3 {[%clk 0:03:00]}  Bb4 {[%clk 0:03:01]} 4. g3 {[%clk 0:02:53]}  Bxc3 {[%clk 0:03:01]} 5. bxc3 {[%clk 0:02:51]}  d6 {[%clk 0:03:01]} 6. Bg2 {[%clk 0:02:51]}  f5 {[%clk 0:03:01]} 7. d3 {[%clk 0:02:50]}  Nf6 {[%clk 0:03:02]} 8. c5 {[%clk 0:02:49]}  O-O {[%clk 0:02:57]} 9. cxd6 {[%clk 0:02:48]}  cxd6 {[%clk 0:02:58]} 10. O-O {[%clk 0:02:48]}  Be6 {[%clk 0:02:56]} 11. Rb1 {[%clk 0:02:48]}  Qd7 {[%clk 0:02:54]} 12. Qd2 {[%clk 0:02:35]}  h6 {[%clk 0:02:51]} 13. Ba3 {[%clk 0:02:34]}  Rac8 {[%clk 0:02:47]} 14. Ne1 {[%clk 0:02:33]}  b6 {[%clk 0:02:44]} 15. Nc2 {[%clk 0:02:33]}  Bxa2 {[%clk 0:02:38]} 16. Ra1 {[%clk 0:02:26]}  Bd5 {[%clk 0:02:36]} 17. f3 {[%clk 0:02:26]}  Be6 {[%clk 0:02:34]} 18. c4 {[%clk 0:02:25]}  Rfd8 {[%clk 0:02:32]} 19. Rfc1 {[%clk 0:02:22]}  d5 {[%clk 0:02:28]} 20. cxd5 {[%clk 0:02:21]}  Nxd5 {[%clk 0:02:27]} 21. Bb2 {[%clk 0:02:19]}  Na5 {[%clk 0:02:07]} 22. Ra3 {[%clk 0:02:08]}  e4 {[%clk 0:02:02]} 23. fxe4 {[%clk 0:02:03]}  fxe4 {[%clk 0:02:02]} 24. Bxe4 {[%clk 0:02:03]}  Ne7 {[%clk 0:01:47]} 25. Nd4 {[%clk 0:01:47]}  Rxc1+ {[%clk 0:01:46]} 26. Qxc1 {[%clk 0:01:47]}  Bd5 {[%clk 0:01:43]} 27. Qe3 {[%clk 0:01:42]}  Re8 {[%clk 0:01:36]} 28. Nf5 {[%clk 0:01:10]}  Nxf5 {[%clk 0:01:18]} 29. Bxd5+ {[%clk 0:01:09]}  Kh8 {[%clk 0:01:19]} 30. Be4 {[%clk 0:01:08]}  Nxe3 {[%clk 0:01:17]} 0-1


[Site "https://www.chess.com"]

[Event "Titled Tuesday Blitz August 09 Late 2022"]
[White "Pakleza, Zbigniew"]
[Black "Bortnyk, Olexandr"]
[WhiteFideId "1119290"]
[BlackFideId "14120828"]
[WhiteElo "2411"]
[BlackElo "2723"]
[Result "0-1"]
[Round "07"]
[TimeControl "180+1"]
[Date "2022.08.09"]
[WhiteClock "0:00:07"]
[BlackClock "0:00:05"]

1. d4 {[%clk 0:03:00]}  d6 {[%clk 0:02:59]} 2. Nf3 {[%clk 0:03:00]}  Nf6 {[%clk 0:02:59]} 3. Bf4 {[%clk 0:03:00]}  b6 {[%clk 0:02:57]} 4. e3 {[%clk 0:03:00]}  Bb7 {[%clk 0:02:58]} 5. h3 {[%clk 0:03:01]}  Nbd7 {[%clk 0:02:59]} 6. Be2 {[%clk 0:03:01]}  e6 {[%clk 0:03:00]} 7. c4 {[%clk 0:02:58]}  Be7 {[%clk 0:03:00]} 8. Nc3 {[%clk 0:02:58]}  h6 {[%clk 0:03:00]} 9. Rc1 {[%clk 0:02:57]}  a6 {[%clk 0:03:00]} 10. a3 {[%clk 0:02:56]}  Ra7 {[%clk 0:02:58]} 11. Bh2 {[%clk 0:02:49]}  Qa8 {[%clk 0:02:58]} 12. b4 {[%clk 0:02:45]}  O-O {[%clk 0:02:55]} 13. O-O {[%clk 0:02:43]}  Ne4 {[%clk 0:02:51]} 14. Nxe4 {[%clk 0:02:40]}  Bxe4 {[%clk 0:02:52]} 15. Ne1 {[%clk 0:02:39]}  a5 {[%clk 0:02:50]} 16. b5 {[%clk 0:02:32]}  a4 {[%clk 0:02:39]} 17. Bf3 {[%clk 0:02:31]}  d5 {[%clk 0:02:27]} 18. Bxe4 {[%clk 0:02:04]}  dxe4 {[%clk 0:02:28]} 19. Nc2 {[%clk 0:01:58]}  c6 {[%clk 0:02:18]} 20. bxc6 {[%clk 0:01:37]}  Qxc6 {[%clk 0:02:19]} 21. Nb4 {[%clk 0:01:37]}  Bxb4 {[%clk 0:02:14]} 22. axb4 {[%clk 0:01:38]}  a3 {[%clk 0:02:15]} 23. b5 {[%clk 0:01:34]}  Qb7 {[%clk 0:02:15]} 24. Qb3 {[%clk 0:01:21]}  a2 {[%clk 0:02:12]} 25. Ra1 {[%clk 0:01:14]}  Rfa8 {[%clk 0:02:12]} 26. Rfc1 {[%clk 0:01:10]}  e5 {[%clk 0:02:01]} 27. c5 {[%clk 0:01:01]}  bxc5 {[%clk 0:01:39]} 28. dxc5 {[%clk 0:01:00]}  Ra3 {[%clk 0:01:40]} 29. Qb2 {[%clk 0:00:45]}  Qd5 {[%clk 0:01:29]} 30. c6 {[%clk 0:00:42]}  Rb3 {[%clk 0:00:25]} 31. Qc2 {[%clk 0:00:26]}  Nb6 {[%clk 0:00:25]} 32. Rxa2 {[%clk 0:00:18]}  Rxa2 {[%clk 0:00:20]} 33. Qxa2 {[%clk 0:00:19]}  Rc3 {[%clk 0:00:21]} 34. Qa1 {[%clk 0:00:19]}  Rxc1+ {[%clk 0:00:21]} 35. Qxc1 {[%clk 0:00:20]}  Qxb5 {[%clk 0:00:22]} 36. c7 {[%clk 0:00:17]}  Nc8 {[%clk 0:00:12]} 37. Bg3 {[%clk 0:00:18]}  Qd5 {[%clk 0:00:09]} 38. Qb2 {[%clk 0:00:14]}  f6 {[%clk 0:00:08]} 39. Qb8 {[%clk 0:00:15]}  Qd7 {[%clk 0:00:07]} 40. h4 {[%clk 0:00:14]}  Kf7 {[%clk 0:00:07]} 41. h5 {[%clk 0:00:15]}  Ke7 {[%clk 0:00:07]} 42. f3 {[%clk 0:00:15]}  exf3 {[%clk 0:00:07]} 43. gxf3 {[%clk 0:00:16]}  Kd6 {[%clk 0:00:07]} 44. Be1 {[%clk 0:00:13]}  Kc6 {[%clk 0:00:03]} 45. Bb4 {[%clk 0:00:09]}  Qf5 {[%clk 0:00:02]} 46. Kf2 {[%clk 0:00:06]}  Kd7 {[%clk 0:00:01]} 47. Qb5+ {[%clk 0:00:05]}  Kxc7 {[%clk 0:00:02]} 48. Ba5+ {[%clk 0:00:04]}  Kd6 {[%clk 0:00:03]} 49. Bb4+ {[%clk 0:00:04]}  Kc7 {[%clk 0:00:02]} 50. Ba5+ {[%clk 0:00:04]}  Kd6 {[%clk 0:00:03]} 51. Bb4+ {[%clk 0:00:05]}  Ke6 {[%clk 0:00:03]} 52. Qc6+ {[%clk 0:00:02]}  Kf7 {[%clk 0:00:03]} 53. Qc7+ {[%clk 0:00:02]}  Kg8 {[%clk 0:00:04]} 54. Bf8 {[%clk 0:00:03]}  Kxf8 {[%clk 0:00:04]} 55. Qd8+ {[%clk 0:00:04]}  Kf7 {[%clk 0:00:04]} 56. e4 {[%clk 0:00:04]}  Qe6 {[%clk 0:00:04]} 57. Qc7+ {[%clk 0:00:05]}  Ne7 {[%clk 0:00:04]} 58. Qc2 {[%clk 0:00:06]}  Qh3 {[%clk 0:00:04]} 59. Ke3 {[%clk 0:00:06]}  Qxh5 {[%clk 0:00:04]} 60. Qa2+ {[%clk 0:00:07]}  Kf8 {[%clk 0:00:05]} 61. Qh2 {[%clk 0:00:07]}  Qxh2 {[%clk 0:00:05]} 0-1


[Site "https://www.chess.com"]